[Event "LV Capablanca Memorial Elite 2022"]
[Site "La Habana"]
[Date "2022.04.25"]
[Round "6.2"]
[White "Durarbayli, Vasif"]
[Black "Ortiz Suarez, Isan Reynaldo"]
[Result "1/2-1/2"]
[ECO "B94"]
[WhiteElo "2615"]
[BlackElo "2531"]
[Annotator "TA"]
[PlyCount "205"]
[EventDate "2022.04.20"]
[EventType "tourn"]
[EventCountry "CUB"]
[SourceTitle "playchess.com"]
[Source "ChessBase"]
[SourceQuality "1"]
[TimeControl "40/5400+30:1800+30"]

{[%evp 57,205,0,283,209,196,88,561,533,979,994,924,912,884,321,310,313,320,316,305,-42,0,-45,-25,-51,-51,-48,-54,-52,-52,-56,-25,-52,-26,-40,0,0,0,0,0,0,0,0,0,0,0,0,0,-24,0,0,0,0,0,0,0,0,0,0,0,0,0,0,0,0,0,0,0,0,0,0,0,0,0,0,0,0,20,20,25,25,25,0,25,0,0,0,25,0,0,0,0,0,0,0,0,0,0,0,0,0,0,0,0,0,0,0,0,0,0,0,0,0,0,0,0,0,0,0,0,0,0,0,0,0,0,0,0,0,0,0,0,0,0,0,0,0,0,0,0,0,0,0,0,0,0,0,0,0,0,0]} 1. e4 {[%emt 0:00:03]} c5 {[%emt 0:00:33]} 2. Nf3 {[%emt 0:00:09]} d6 {[%emt 0:00:08]} 3. d4 {[%emt 0:00:06]} cxd4 {[%emt 0:00:05]} 4. Nxd4 {[%emt 0:00:04]} Nf6 {[%emt 0:00:04]} 5. Nc3 {[%emt 0:00:04]} a6 {[%emt 0:00:03]} 6. Bg5 {[%emt 0:00:05]} Nbd7 {[%emt 0:00:08]} 7. Bc4 {[%emt 0:00:11]} Qb6 {[%emt 0:00:18]} 8. Bb3 {[%emt 0:00:25]} e6 {[%emt 0:00:08]} 9. h4 {[%emt 0:00:07]} Be7 {[%emt 0:01:52]} 10. f3 {[%emt 0:04:12]} Nc5 {[%emt 0:01:08]} 11. Qd2 {[%emt 0:01:36]} Qc7 {[%emt 0:00:34]} 12. g4 {[%emt 0:00:06]} b5 {[%emt 0:01:26]} 13. a3 {[%emt 0:00:06]} Bd7 {[%emt 0:00:35]} 14. Ba2 {[%emt 0:00:36]} O-O {[%emt 0:03:44]} 15. h5 {[%emt 0:06:03]} Rfb8 {[%emt 0:13:21]} 16. b4 {[%emt 0:03:59]} Na4 {[%emt 0:03:28]} 17. Nxa4 {[%emt 0:02:06]} bxa4 {[%emt 0:00:04]} 18. Be3 {[%emt 0:06:08]} Be8 {[%emt 0:07:10]} 19. g5 {[%emt 0:05:25]} Nd7 {[%emt 0:00:06]} 20. g6 {[%emt 0:00:11]} Bf6 {[%emt 0:03:41]} 21. O-O-O {[%emt 0:23:16]} Ne5 {[%emt 0:06:10]} 22. h6 {[%emt 0:03:55]} hxg6 {[%emt 0:06:05]} 23. hxg7 {[%emt 0:01:00]} Bxg7 {[%emt 0:00:08]} 24. Bh6 {[%emt 0:00:44]} Bf6 {[%emt 0:00:49]} 25. Qf4 {[%emt 0:04:37]} Qe7 {[%emt 0:04:55]} 26. Qh2 {[%emt 0:03:48]} Qc7 {[%emt 0:05:10]} 27. Qf4 {[%emt 0:00:24]} Qe7 {[%emt 0:00:49]} 28. Rh3 {[%emt 0:00:20]} Rc8 {[%emt 0:02:15]} 29. Qh2 {[%emt 0:02:37]} Qc7 $2 {[%emt 0:03:36][%mdl 8192]} (29... Bb5 $11) 30. Kb1 $18 {[%emt 0:01:14]} Nc4 {[%emt 0:02:14]} 31. Bc1 {[%emt 0:04:01]} (31. Bxc4 $18 {[%cal Oh6g5]} Qxc4 32. Qxd6) 31... d5 $2 {[%emt 0:00:52][%mdl 8192]} (31... Qb6 $16 {is a better chance.}) 32. f4 $1 $18 {[%emt 0:00:19]} dxe4 {[%emt 0:01:22]} 33. Bxc4 {[%emt 0:04:48]} Qxc4 {[%emt 0:00:05]} 34. Bb2 $1 {[%emt 0:00:02]} Qd5 {[%emt 0:09:57]} 35. Rh1 $2 {[%emt 0:00:40]} (35. Rd2 e5 36. Nf5 $1 {[%mdl 512]} Qxd2 37. Qxd2) 35... Kf8 $18 {[%emt 0:00:09] [#]} (35... Bxd4 36. Rh8+ $1 {[%mdl 512]} Kg7 37. Bxd4+ Qxd4 38. Qh6+ Kf6 39. Qg5+ Kg7 40. R1h7#) 36. Nc6 $1 {[%emt 0:01:01]} Bxc6 {[%emt 0:06:10]} (36... Bxb2 {[#]} 37. Rh8+ $1 {[%mdl 512]} Kg7 38. Ne5) 37. Bxf6 {[%emt 0:00:11]} Ke8 {[%emt 0:00:02]} 38. Rh8+ $2 {[%emt 0:05:53]} (38. f5 $18 {[%cal Oc2c4] And now c4! would win.} Kd7 39. fxg6) 38... Kd7 $11 {[%emt 0:00:30]} 39. Qh7 {[%emt 0:11:13]} (39. Rh7 $5 Rf8 40. Bg7 $11) 39... e5 $1 {[%emt 0:01:47]} ({Don't do} 39... Rf8 40. Rxf8 Rxf8 41. Qg7 $18) 40. Qh3+ {[%emt 0:00:00]} Kc7 {[%emt 0:00:00]} 41. Bxe5+ {[%emt 0:10:20]} Kb7 {[%emt 0:01:36]} 42. Rxc8 {[%emt 0:00:13]} Rxc8 {[%emt 0:00:05]} 43. Qe3 {[%emt 0:00:05]} Rd8 {[%emt 0:03:11]} 44. Rh2 {[%emt 0:01:33]} Qc4 {[%emt 0:05:22]} 45. Rd2 {[%emt 0:01:00]} Rxd2 {[%emt 0:01:54]} 46. Qxd2 {[%emt 0:00:01]} Bd5 {[%emt 0:00:21]} 47. Kc1 {[%emt 0:00:47]} Kc6 {[%emt 0:01:46]} 48. Qe3 {[%emt 0:01:31]} Kd7 {[%emt 0:01:02]} 49. Kd2 {[%emt 0:01:22]} Bc6 {[%emt 0:02:33]} 50. Qh3+ {[%emt 0:03:28]} Qe6 {[%emt 0:01:32]} 51. Qh7 {[%emt 0:00:35]} Bd5 {[%emt 0:03:09]} 52. Qh4 {[%emt 0:01:33]} Qf5 {[%emt 0:02:31]} 53. Qf2 {[%emt 0:01:45]} Qe6 {[%emt 0:06:26]} 54. Qa7+ {[%emt 0:03:07]} Ke8 {[%emt 0:00:17]} 55. Qb8+ {[%emt 0:00:07]} Ke7 {[%emt 0:01:13]} 56. Qc7+ {[%emt 0:00:06]} Ke8 {[%emt 0:00:02]} 57. Qb8+ {[%emt 0:00:42]} Kd7 {[%emt 0:00:36]} 58. Qc7+ {[%emt 0:01:26]} Ke8 {[%emt 0:00:05]} 59. Bd4 {[%emt 0:00:41]} Bc4 {[%emt 0:03:00]} 60. Qb8+ {[%emt 0:02:04]} Kd7 {[%emt 0:00:21]} 61. Qb7+ {[%emt 0:02:00]} Ke8 {[%emt 0:00:12]} 62. Qc7 {[%emt 0:01:20]} Bb5 {[%emt 0:00:35]} 63. Qb8+ {[%emt 0:00:20]} Kd7 {[%emt 0:00:31]} 64. Qb7+ {[%emt 0:01:32]} Ke8 $1 {[%emt 0:00:18]} 65. Qa8+ {[%emt 0:00:05]} Kd7 {[%emt 0:00:32]} 66. Bc5 {[%emt 0:00:51]} Qc4 {[%emt 0:02:17]} 67. Qb7+ {[%emt 0:00:29]} Ke6 {[%emt 0:00:19]} 68. Qe7+ {[%emt 0:00:37]} Kf5 {[%emt 0:00:26]} 69. Qg5+ {[%emt 0:03:03]} Ke6 {[%emt 0:00:03]} 70. Qe7+ {[%emt 0:00:03]} (70. f5+ $5 Kd7 71. fxg6 fxg6 72. Qe7+ (72. Qxg6 e3+ 73. Kxe3 Qc3+ 74. Kf2 Qd2+ 75. Kg3 Qe1+ 76. Kf4 Qd2+ 77. Kg3 Qe1+ 78. Kg4 Qd1+ 79. Kf4 Qd2+ 80. Kg3 $14) 72... Kc8 73. Qf8+ Kb7 74. Qg7+ Kc8 75. Qf8+ Kb7 76. Qg7+ Kc8 77. Kc1 $16) 70... Kf5 {[%emt 0:00:08]} 71. Qg5+ {[%emt 0:02:01]} Ke6 {[%emt 0:00:04]} 72. Qe5+ {[%emt 0:00:56]} (72. f5+ $5 Kd7 73. fxg6 fxg6 74. Qe7+ (74. Qxg6 e3+ 75. Kxe3 Qe2+ 76. Kf4 Qh2+ 77. Kf3 Qe2+ 78. Kg3 Qe5+ 79. Kg2 a5 $14) 74... Kc8 75. Qf8+ Kb7 76. Qg7+ Kc8 77. Qf8+ Kb7 78. Qg7+ Kc8 79. Kc1 $16) 72... Kd7 {[%emt 0:00:04]} 73. Qd6+ {[%emt 0:00:27]} Kc8 {[%emt 0:00:09]} 74. Kc1 {[%emt 0:01:13]} Qf1+ {[%emt 0:01:12]} 75. Kb2 {[%emt 0:00:06]} Qc4 {[%emt 0:00:03]} 76. Qf8+ {[%emt 0:00:50]} Kd7 {[%emt 0:00:17]} 77. Qd6+ {[%emt 0:00:57]} Kc8 {[%emt 0:00:04]} 78. Qf8+ {[%emt 0:00:10]} Kd7 {[%emt 0:00:03]} 79. Qe7+ {[%emt 0:00:04]} Kc8 {[%emt 0:00:03]} 80. Bb6 {[%emt 0:00:15]} Qc6 {[%emt 0:01:32]} 81. Bd4 {[%emt 0:01:16]} Bc4 {[%emt 0:00:48]} 82. Bf6 {[%emt 0:00:58]} Be6 {[%emt 0:05:15]} 83. Qd8+ {[%emt 0:00:11]} Kb7 {[%emt 0:00:03]} 84. Be5 {[%emt 0:00:09]} Qd7 {[%emt 0:02:04]} 85. Qb8+ {[%emt 0:00:43]} Kc6 {[%emt 0:00:03]} 86. Qa8+ {[%emt 0:00:08]} Qb7 {[%emt 0:00:14]} 87. Qf8 {[%emt 0:00:05]} Qd7 {[%emt 0:00:18]} 88. Kc3 {[%emt 0:01:10]} Qc8 {[%emt 0:01:27]} 89. Qd6+ {[%emt 0:00:34]} Kb7+ {[%emt 0:00:04]} 90. Kb2 {[%emt 0:00:33]} Qd7 {[%emt 0:00:42]} 91. Qb8+ {[%emt 0:01:05]} Kc6 {[%emt 0:00:04]} 92. Qa8+ {[%emt 0:00:22]} Qb7 {[%emt 0:00:04]} 93. Qf8 {[%emt 0:00:03]} Qd7 {[%emt 0:00:13]} 94. Qc5+ {[%emt 0:00:04]} Kb7 {[%emt 0:00:01]} 95. Bd4 {[%emt 0:00:21]} Qc6 {[%emt 0:00:12]} 96. Qa7+ {[%emt 0:00:33]} Kc8 {[%emt 0:00:03]} 97. Be5 {[%emt 0:00:03]} Bd5 {[%emt 0:01:00]} 98. Qe7 {[%emt 0:00:41]} Bc4 {[%emt 0:04:27]} 99. Qa7 {[%emt 0:02:08]} Bd5 {[%emt 0:00:44]} 100. Bd4 {[%emt 0:01:13]} Qc4 {[%emt 0:00:29]} 101. Kc1 {[%emt 0:00:47]} Qf1+ {[%emt 0:01:16]} 102. Kb2 {[%emt 0:00:01]} Qc4 {[%emt 0:00:06]} 103. Kc1 {[%emt 0:00:28]} 1/2-1/2

[Event "LV Capablanca Memorial Elite 2022"]
[Site "La Habana"]
[Date "2022.04.25"]
[Round "6.3"]
[White "Ganguly, Surya Shekhar"]
[Black "Quesada Perez, Luis Ernesto"]
[Result "1-0"]
[ECO "D94"]
[WhiteElo "2627"]
[BlackElo "2517"]
[Annotator "TA"]
[PlyCount "53"]
[EventDate "2022.04.20"]
[EventType "tourn"]
[EventCountry "CUB"]
[SourceTitle "playchess.com"]
[Source "ChessBase"]
[SourceQuality "1"]
[TimeControl "40/5400+30:1800+30"]

{[%evp 18,53,32,34,16,19,18,0,8,18,19,15,49,52,45,37,36,30,46,26,27,21,208,205,204,205,203,198,405,401,772,772,1276,1252,1215,777,837,770]} 1. Nf3 {[%emt 0:01:36]} Nf6 {[%emt 0:01:16]} 2. c4 {[%emt 0:00:08]} c6 {[%emt 0:02:03]} 3. Nc3 {[%emt 0:00:21]} d5 {[%emt 0:00:06]} 4. e3 {[%emt 0:00:05]} g6 {[%emt 0:00:57]} 5. d4 {[%emt 0:00:11]} Bg7 {[%emt 0:00:06]} 6. Be2 {[%emt 0:00:10]} O-O {[%emt 0:00:15]} 7. O-O {[%emt 0:00:10]} Bg4 {[%emt 0:02:47]} 8. cxd5 {[%emt 0:02:20]} cxd5 {[%emt 0:01:43]} 9. Qb3 {[%emt 0:01:23]} b6 {[%emt 0:00:57]} 10. h3 {[%emt 0:02:22]} Bc8 {[%emt 0:05:18] is currently scoring better than 10...Bxf3. D94: Grünfeld: 4 Nf3 Bg7 5 e3.} 11. Ne5 {[%emt 0:05:31]} Bb7 {[%emt 0:00:10] [#]} 12. Qa4 $5 $146 {[%emt 0:08:15][%mdl 8] An interesting novelty.} ({Predecessor:} 12. Bd2 Nc6 13. f4 Na5 14. Qa4 a6 15. Qa3 Re8 16. Rac1 Rc8 17. b3 Qd6 18. Qb2 {1-0 (54) Gledura,B (2652)-Reshef,O (2493) Dulles 2022}) 12... a6 {[%emt 0:05:03] The position is equal.} 13. Bd2 {[%emt 0:11:51]} Nfd7 {[%emt 0:05:11]} 14. f4 {[%emt 0:01:52]} e6 {[%emt 0:00:33]} 15. Qb3 {[%emt 0:03:34]} Nxe5 {[%emt 0:06:35]} 16. fxe5 {[%emt 0:00:12]} (16. dxe5 Nd7 $11) 16... Nd7 {[%emt 0:00:09]} 17. Bf3 {[%emt 0:09:24]} Rc8 {[%emt 0:10:40]} 18. Rad1 {[%emt 0:01:48]} Bh6 {[%emt 0:06:33]} 19. Rf2 {[%emt 0:03:40]} f6 $2 {[%emt 0:19:04] [#] Black cannot hold the game after this.} (19... b5 $11 {and Black has nothing to worry.}) 20. e4 $1 $18 {[%emt 0:02:56][%cal Be3e4,Be4d5,Bd5e6,Be6d7][%mdl 32]} Bxd2 {[%emt 0:00:07]} 21. Rfxd2 {[%emt 0:04:02][%cal Re4d5]} fxe5 {[%emt 0:04:40]} 22. exd5 {[%emt 0:00:21]} Rxf3 $2 {[%emt 0:04:58]} (22... exd4 23. dxe6 Nc5 24. e7+ Nxb3 25. exd8=Q (25. exd8=B $2 {is the wrong capture.} Bxf3 26. Rxd4 Bxd1 $19) 25... Rcxd8 26. axb3 Bxf3) 23. dxe6 {[%emt 0:00:51] e7+ is the strong threat.} (23. gxf3 Qg5+ 24. Rg2 Qe3+ 25. Rf2 exd4 $11) 23... Kg7 {[%emt 0:02:23]} (23... Rfxc3 $2 24. bxc3 Nf8 25. e7+ Qd5 26. Qxd5+ Bxd5 27. dxe5 $18) (23... Nc5 $142 24. dxc5 Qg5 25. e7+ (25. Qxb6 {leads to mate.} Qe3+ 26. Kh2 Rxh3+ 27. gxh3 Qf4+ 28. Kg1 Qg3+ 29. Kf1 Rf8+ 30. Ke2 Qf3+ 31. Ke1 Qf1#) 25... Kg7) 24. exd7 {[%emt 0:04:28] White is clearly winning.} Rcxc3 {[%emt 0:01:25]} 25. bxc3 {[%emt 0:00:06]} Qg5 {[%emt 0:00:21]} 26. d5 {[%emt 0:03:20]} Qe3+ {[%emt 0:02:21]} 27. Kh1 {[%emt 0:00:51] Weighted Error Value: White=0.07 (flawless) /Black=0.50} 1-0

[Event "LV Capablanca Memorial Elite 2022"]
[Site "La Habana"]
[Date "2022.04.25"]
[Round "6.4"]
[White "Quesada Perez, Yasser"]
[Black "Niemann, Hans Moke"]
[Result "0-1"]
[ECO "A45"]
[WhiteElo "2568"]
[BlackElo "2642"]
[Annotator "TA"]
[PlyCount "106"]
[EventDate "2022.04.20"]
[EventType "tourn"]
[EventCountry "CUB"]
[SourceTitle "playchess.com"]
[Source "ChessBase"]
[SourceQuality "1"]
[TimeControl "40/5400+30:1800+30"]

{[%evp 9,106,-5,-8,-2,2,-20,-21,-15,10,8,18,0,10,-21,-14,-47,19,-52,-35,-35,-34,-35,-37,-33,-31,-33,11,-38,-22,-79,-74,-75,-71,-72,-36,-47,-56,-83,-83,-84,-82,-85,-51,-100,-54,-46,-50,-47,-50,-50,-51,-51,-47,-47,-47,-47,-39,-115,-115,-115,-115,-115,-115,-170,-170,-170,-170,-170,-170,-170,-170,-170,-170,-170,-170,-170,-170,-352,-362,-334,-335,-323,-314,-333,-241,-350,-370,-461,-452,-637,-631,-1283,-1282,-1249,-1228,-1669,-1684,-1477,-1247]} 1. d4 {[%emt 0:01:06]} Nf6 {[%emt 0:01:30]} 2. Bf4 {[%emt 0:00:09]} g6 {[%emt 0:00:43]} 3. Nc3 {[%emt 0:00:16]} d5 {[%emt 0:00:21]} 4. e3 {[%emt 0:00:11]} Bg7 {[%emt 0:00:20]} 5. h4 {[%emt 0:00:20]} c6 {[%emt 0:02:54]} 6. Qd2 {[%emt 0:04:27] A45: Trompowsky Attack.} b5 {[%emt 0:03:28]} 7. Bd3 {[%emt 0:01:48]} Nbd7 {[%emt 0:03:58]} 8. Nf3 {[%emt 0:06:47] [#] The position is equal.} Bb7 $146 {[%emt 0:00:51]} ({Predecessor:} 8... b4 9. Ne2 a5 10. Ng3 h5 11. Ne5 Nxe5 12. Bxe5 O-O 13. a3 bxa3 14. Rxa3 Bh6 {0-1 (43) Ardelean,G (2488)-Hansen,E (2606) Chess.com INT 2020}) 9. Ne5 {[%emt 0:03:59]} a6 {[%emt 0:04:31]} 10. Ne2 {[%emt 0:14:15]} c5 {[%emt 0:01:42] Hoping for ...c4.} 11. Ng3 {[%emt 0:00:04]} h5 {[%emt 0:07:47]} 12. f3 {[%emt 0:06:01][%cal Oe5g6]} c4 {[%emt 0:04:15] [#]} (12... Nxe5 $15 13. Bxe5 c4) 13. Be2 {[%emt 0:00:05]} ({Better is} 13. Nxg6 $1 $11 fxg6 14. Bxg6+ Kf8 15. Nf5) 13... Nf8 {[%emt 0:00:27]} 14. c3 {[%emt 0:05:32]} Ne6 {[%emt 0:00:32]} 15. Bd1 {[%emt 0:00:46]} Nxf4 {[%emt 0:11:48]} 16. exf4 {[%emt 0:00:04]} Nd7 {[%emt 0:06:03]} 17. Bc2 {[%emt 0:01:29][%cal Oe5g6]} e6 {[%emt 0:00:47] [#]} 18. Ne2 {[%emt 0:05:06]} (18. Nxg6 $1 $11 fxg6 19. Bxg6+ Ke7 20. Nxh5) 18... Bh6 {[%emt 0:01:32]} 19. O-O-O {[%emt 0:06:09]} (19. g3 $11) 19... Nxe5 {[%emt 0:01:58]} 20. dxe5 {[%emt 0:00:04]} Qb6 {[%emt 0:01:28]} 21. Nd4 {[%emt 0:08:04]} O-O-O {[%emt 0:00:39]} 22. g4 {[%emt 0:12:28]} a5 {[%emt 0:00:51]} 23. Qe3 {[%emt 0:01:57]} Bc6 {[%emt 0:02:18]} 24. Kd2 {[%emt 0:00:49]} Bd7 {[%emt 0:00:12]} 25. Ke2 {[%emt 0:04:04]} b4 {[%emt 0:06:35]} 26. a3 {[%emt 0:00:51]} (26. g5 $15 {was preferrable.} Bf8 27. f5 gxf5 28. Nxf5 Qxe3+ 29. Nxe3) 26... bxa3 {[%emt 0:05:57]} (26... b3 $17 27. Bb1 Rdg8) 27. bxa3 $15 {[%emt 0:00:03]} Bf8 {[%emt 0:00:11]} 28. Rb1 {[%emt 0:00:39]} Qa7 {[%emt 0:01:31]} 29. Nb5 {[%emt 0:02:33]} Qxe3+ {[%emt 0:00:21]} 30. Kxe3 {[%emt 0:00:03]} Bc5+ {[%emt 0:00:11]} 31. Kd2 {[%emt 0:05:06]} Rdf8 {[%emt 0:05:46]} 32. g5 {[%emt 0:01:48]} Kd8 {[%emt 0:05:50]} 33. a4 {[%emt 0:05:01] White is now going downhill.} ({White should play} 33. Nd6 $15 Bxd6 34. exd6) 33... Ke7 $17 {[%emt 0:00:43]} 34. Nd4 {[%emt 0:02:47]} Rb8 {[%emt 0:00:05][%cal Bf8b8,Bb8b7,Bb7b2][%mdl 32] Against Rb7} 35. Ke3 {[%emt 0:00:33]} Bb6 {[%emt 0:00:05]} 36. Rhd1 {[%emt 0:01:27] [#]} (36. Ra1 $17) 36... Rb7 $1 $19 {[%emt 0:00:06]} 37. Ke2 {[%emt 0:01:37]} Rhb8 {[%emt 0:00:15]} 38. Ra1 {[%emt 0:00:28]} Bc5 {[%emt 0:00:21] Strongly threatening ...Rb2.} 39. Rd2 {[%emt 0:00:28]} Kd8 {[%emt 0:01:02]} 40. Ke3 {[%emt 0:00:00]} Rb2 {[%emt 0:00:00]} 41. Re2 {[%emt 0:01:55]} Kc7 {[%emt 0:03:56]} 42. Rd2 {[%emt 0:00:24]} Bc6 {[%emt 0:00:12]} 43. Re2 $2 {[%emt 0:00:19] [#]} (43. Rf2) 43... R8b3 $1 {[%emt 0:02:20][%mdl 512] Really sharp!} 44. Bxb3 {[%emt 0:12:14]} Bxd4+ {[%emt 0:00:10]} 45. cxd4 {[%emt 0:00:54]} Rxb3+ {[%emt 0:00:07][%mdl 4096] Endgame KRR-KRB} 46. Kf2 {[%emt 0:00:49]} Rd3 {[%emt 0:00:08] Inhibits Rd2.} 47. Rb2 {[%emt 0:04:33]} (47. Rb1 {was necessary.}) 47... Rxd4 {[%emt 0:00:14]} 48. Rab1 {[%emt 0:00:02]} c3 {[%emt 0:01:35][%cal Bc4c3,Bc3c2][%mdl 32] Black is clearly winning.} 49. Ke3 {[%emt 0:00:03]} (49. Ra2 $142 Rxf4 50. Ke3) 49... Rxa4 {[%emt 0:01:46]} ({Not} 49... cxb2 50. Kxd4 Bxa4 51. Rxb2 $16) 50. Rb3 {[%emt 0:01:15]} d4+ {[%emt 0:00:28]} 51. Kd3 {[%emt 0:00:02]} Bd5 {[%emt 0:01:42]} 52. Rb8 {[%emt 0:00:27]} Ra2 {[%emt 0:00:13][%csl Gc3][%cal Ra2d2]} 53. Kxd4 {[%emt 0:01:45]} c2 {[%emt 0:00:06] Weighted Error Value: White=0.44/Black=0.07 (flawless)} 0-1

[Event "LV Capablanca Memorial Elite 2022"]
[Site "La Habana"]
[Date "2022.04.25"]
[Round "6.5"]
[White "Albornoz Cabrera, Carlos Daniel"]
[Black "Almeida Quintana, Omar"]
[Result "1-0"]
[ECO "B06"]
[WhiteElo "2567"]
[BlackElo "2535"]
[Annotator "TA"]
[PlyCount "115"]
[EventDate "2022.04.20"]
[EventType "tourn"]
[EventCountry "CUB"]
[SourceTitle "playchess.com"]
[Source "ChessBase"]
[SourceQuality "1"]
[TimeControl "40/5400+30:1800+30"]

{[%evp 9,115,32,24,30,29,38,35,24,50,47,52,25,25,29,27,24,32,32,33,26,24,27,56,37,45,40,52,35,41,46,36,27,51,51,61,31,106,112,152,139,109,124,91,91,206,199,194,116,104,101,216,192,197,228,227,227,357,240,310,190,229,230,266,264,325,266,247,210,208,63,87,0,141,107,93,118,195,194,347,332,270,470,419,491,492,493,503,466,497,454,480,496,460,496,442,381,716,688,579,527,1782,1393,2154,2044,6075,5345,5106,5106]} 1. e4 {[%emt 0:00:04]} g6 {[%emt 0:00:13]} 2. d4 {[%emt 0:00:05]} Bg7 {[%emt 0:00:05]} 3. Nc3 {[%emt 0:00:10]} d6 {[%emt 0:00:04]} 4. Be3 {[%emt 0:00:07]} a6 {[%emt 0:00:04]} 5. h4 {[%emt 0:00:26]} h5 {[%emt 0:00:12]} 6. Nh3 {[%emt 0:00:19] B06: Modern Defence.} Bxh3 {[%emt 0:00:05]} 7. Rxh3 {[%emt 0:00:04]} Nd7 {[%emt 0:00:40] [#]} 8. Qe2 $146 {[%emt 0:00:09] White is slightly better.} ({Predecessor:} 8. Qd2 Ngf6 9. O-O-O c6 10. Kb1 Qa5 11. Bd3 O-O-O 12. Rg3 Ng4 13. Bg5 Bxd4 14. Bxe7 {0-1 (78) Plazuelo Pascual,J (2458)-Sunilduth Lyna,N (2662) Chess.com INT 2022}) 8... c6 {[%emt 0:00:05]} 9. O-O-O {[%emt 0:00:33]} Qc7 {[%emt 0:00:05]} 10. g4 {[%emt 0:01:21]} hxg4 {[%emt 0:01:58]} 11. Qxg4 {[%emt 0:00:02]} Ngf6 {[%emt 0:00:08]} 12. Qg2 {[%emt 0:03:28]} O-O-O {[%emt 0:03:14]} 13. f4 {[%emt 0:08:31]} Bh6 {[%emt 0:01:03]} 14. e5 {[%emt 0:04:43]} Nh5 {[%emt 0:00:43]} 15. Qf2 {[%emt 0:02:19]} Nb6 {[%emt 0:05:48]} 16. Be2 {[%emt 0:14:44]} Qd7 {[%emt 0:09:46]} 17. Rhh1 {[%emt 0:07:31]} Kb8 {[%emt 0:06:07]} 18. Kb1 {[%emt 0:01:25]} Nd5 {[%emt 0:02:18]} 19. Nxd5 {[%emt 0:02:40]} cxd5 {[%emt 0:00:13]} 20. Rdf1 {[%emt 0:08:15]} e6 {[%emt 0:04:01]} 21. Bxh5 {[%emt 0:05:50]} gxh5 {[%emt 0:00:17]} 22. Qe2 {[%emt 0:01:00]} Rdg8 {[%emt 0:06:54]} (22... dxe5 $14 23. fxe5 Rdg8) 23. Qxh5 $16 {[%emt 0:13:56]} Bg5 {[%emt 0:07:08] [#]} 24. Qxh8 {[%emt 0:04:52][%mdl 512]} Rxh8 {[%emt 0:00:08]} 25. fxg5 {[%emt 0:00:03]} dxe5 {[%emt 0:00:32]} 26. h5 {[%emt 0:01:22][%cal Bh4h5,Bh5h6][%mdl 32]} Qe8 {[%emt 0:15:52]} (26... Qc7 $16 {keeps fighting.}) 27. dxe5 $18 {[%emt 0:02:22]} Qg8 {[%emt 0:00:59]} 28. Rf6 {[%emt 0:02:10]} ({Better is} 28. h6 $18) 28... d4 $16 {[%emt 0:00:17]} 29. Bd2 {[%emt 0:02:28] White is more active.} (29. Bxd4 Qxg5 30. h6 (30. Rxf7 Rxh5 31. Rhf1 Rh8 $11) 30... Qg2 $14) 29... d3 {[%emt 0:01:28]} (29... Qh7 $16 {was necessary.}) 30. c3 $1 $18 {[%emt 0:04:55] h6 is the strong threat.} (30. cxd3 $6 Qd8 31. Rf3 (31. Rxf7 $2 Qxd3+ 32. Ka1 Qxd2 $19) 31... Qd5 $16) 30... Qe8 {[%emt 0:01:30]} 31. h6 {[%emt 0:02:00] And now Rhf1 would win.} Rh7 {[%emt 0:06:43]} 32. Rhf1 {[%emt 0:01:06][%cal Og5g6] Black must now prevent g6!} Qc6 {[%emt 0:02:06]} (32... Qa4 $142 33. b3 Qd7) 33. b3 {[%emt 0:00:43]} (33. Rxf7 $2 Rxf7 34. Rd1 Qe4 $19) 33... Qg2 {[%emt 0:02:54]} 34. R6f2 {[%emt 0:00:21]} (34. Rxf7 $2 Rxf7 35. Rd1 Qe2 $19) 34... Qg4 {[%emt 0:00:07]} 35. Kb2 {[%emt 0:00:37]} (35. Rxf7 $2 Rxf7 36. Rxf7 Qd1+ 37. Kb2 Qxd2+ 38. Ka3 Qc1+ 39. Ka4 d2 $19) 35... Qh5 {[%emt 0:02:37]} 36. Rf3 {[%emt 0:00:46]} Qg6 {[%emt 0:01:31]} 37. R1f2 {[%emt 0:01:28]} b5 {[%emt 0:01:07]} 38. Kc1 {[%emt 0:02:12]} a5 {[%emt 0:02:06] [#]} 39. Rf6 {[%emt 0:01:59]} (39. Kb2 $1 $18) 39... Qe4 $1 $14 {[%emt 0:02:22]} 40. R6f3 {[%emt 0:00:00]} (40. Rxf7 $6 Rxf7 41. Rxf7 Qh1+ 42. Kb2 Qh2 43. Rf8+ (43. Kc1 Qh1+ 44. Kb2 Qh2 $11) 43... Kc7 $11) ({White should play} 40. R6f4 $16 Qh1+ 41. Rf1) 40... Kc8 {[%emt 0:00:00]} (40... Qg6 $11) 41. Rf4 {[%emt 0:06:23]} (41. Rxf7 $6 Rxf7 42. Rxf7 Qh1+ 43. Kb2 Qg2 44. Rf8+ (44. Kc1 Qh1+ 45. Kb2 Qg2 $11) 44... Kd7 $11) 41... Qh1+ {[%emt 0:07:36]} 42. Rf1 {[%emt 0:00:10]} Qh5 {[%emt 0:00:34]} (42... Qh2 $16 43. R1f3 (43. Rxf7 Rxf7 44. Rxf7 Qh1+ 45. Kb2 Qh2 $11) 43... Qg2) 43. R1f3 $18 {[%emt 0:03:27] aiming for Kb2.} Qh1+ $2 {[%emt 0:05:44]} (43... Kb8 {was worth a try.}) 44. Kb2 {[%emt 0:00:46]} Qg2 {[%emt 0:06:10]} 45. Rxd3 {[%emt 0:05:21] Dancing on a razor blade.} Qxg5 {[%emt 0:02:25] [#]} 46. Rc4+ $3 {[%emt 0:09:17][%mdl 512]} bxc4 {[%emt 0:00:07]} 47. Bxg5 {[%emt 0:00:02]} cxd3 {[%emt 0:00:07][%mdl 4096] Endgame KR-KB} 48. c4 {[%emt 0:00:02][%cal Bc3c4,Bc4c5,Bc5c6][%mdl 32]} Kd7 {[%emt 0:00:16]} 49. Kc3 {[%emt 0:00:31]} f6 {[%emt 0:00:07]} 50. exf6 {[%emt 0:00:38]} e5 {[%emt 0:00:10]} 51. Kxd3 {[%emt 0:00:23] Threatens to win with c5.} Ke6 {[%emt 0:00:08]} 52. c5 {[%emt 0:04:13] Strongly threatening Kc4.} Kf5 $2 {[%emt 0:01:46]} (52... Rb7 53. Ke4 Rc7) 53. Be3 {[%emt 0:01:16] White is clearly winning.} Kxf6 {[%emt 0:02:01]} 54. Kc4 {[%emt 0:00:31]} Kf5 {[%emt 0:01:43]} 55. c6 {[%emt 0:00:39]} Ke4 {[%emt 0:00:25]} 56. Bd2 {[%emt 0:00:52]} Kf3 {[%emt 0:03:39]} 57. Kb5 {[%emt 0:00:31]} e4 {[%emt 0:01:23]} 58. Kxa5 {[%emt 0:02:14] Weighted Error Value: White=0.13 (very precise) /Black=0.31} 1-0